fUSD/lending_fUSD_20260109
["ID","MTS","AMOUNT","RATE_DAILY","PERIOD"]
[401089789,1767917137047,-1500.0,0.00017099,2]
[401089790,1767917137068,-500.0,0.00017099,2]
[401089791,1767917137090,-1500.0,0.00017099,2]
[401089792,1767917137111,-500.0,0.00017099,2]
[401089793,1767917137132,-500.0,0.00017099,2]
[401089794,1767917137153,-1500.0,0.00017099,2]
[401089795,1767917137175,-500.0,0.00017099,2]
[401089796,1767917137197,-1500.0,0.00017099,2]
[401089797,1767917137220,-500.0,0.00017099,2]
[401089798,1767917137243,-496.48372017,0.00017099,2]
[401089799,1767917137265,-500.0,0.00017099,2]
[401089800,1767917137288,-500.0,0.00017099,2]
[401089801,1767917137311,-500.0,0.00017099,2]
[401089802,1767917137334,-529.58639713,0.00017099,2]
[401089803,1767917137595,-500.0,0.00017099,2]
[401089804,1767917137620,-500.0,0.00017099,2]
[401089805,1767917137664,-500.0,0.00017099,2]
[401089806,1767917137705,-500.0,0.00017099,2]
[401089807,1767917137731,-500.0,0.00017099,2]
[401089808,1767917137754,-553.64373807,0.00017099,2]
[401089809,1767917137782,-695.39793187,0.00017099,2]
[401089810,1767917137807,-151.0,0.00017099,2]
[401089811,1767917137848,-250.0,0.00017099,2]
[401089812,1767917137874,-250.0,0.00017099,2]
[401089813,1767917137899,-250.0,0.00017099,2]
[401089814,1767917137923,-250.0,0.00017099,2]
[401089815,1767917137947,-250.0,0.00017099,2]
[401089816,1767917137971,-250.0,0.00017099,2]
[401089817,1767917137994,-250.0,0.00017099,2]
[401089818,1767917138018,-250.0,0.00017099,2]
[401089819,1767917138044,-275.30162004,0.00017099,2]
[401089820,1767917138066,-620.0,0.00017099,2]
[401089821,1767917138092,-2000.0,0.00017099,2]
[401089822,1767917138115,-2000.0,0.00017099,2]
[401089823,1767917138142,-500.0,0.00017099,2]
[401089824,1767917138167,-2000.0,0.00017099,2]
[401089825,1767917138190,-500.0,0.00017099,2]
[401089826,1767917138212,-2000.0,0.00017099,2]
[401089827,1767917138234,-500.0,0.00017099,2]
[401089828,1767917138255,-2000.0,0.00017099,2]
[401089829,1767917138277,-500.0,0.00017099,2]
[401089830,1767917138298,-578.20924308,0.00017099,2]
[401089831,1767917138320,-2000.0,0.00017099,2]
[401089832,1767917138342,-500.0,0.00017099,2]
[401089833,1767917138365,-2000.0,0.00017099,2]
[401089834,1767917138387,-500.0,0.00017099,2]
[401089835,1767917138409,-2000.0,0.00017099,2]
[401089836,1767917138432,-1000.0,0.00017099,2]
[401089837,1767917138455,-500.0,0.00017099,2]
[401089838,1767917138477,-500.0,0.00017099,2]
[401089839,1767917138499,-500.0,0.00017099,2]
[401089840,1767917138522,-500.0,0.00017099,2]
[401089841,1767917138544,-500.0,0.00017099,2]
[401089842,1767917138568,-500.0,0.00017099,2]
[401089843,1767917138590,-1000.0,0.00017112,2]
[401089844,1767917138611,-151.22,0.00017178,2]
[401089845,1767917138631,-300.0,0.00017178,2]
[401089846,1767917138653,-151.14,0.00017178,2]
[401089847,1767917138675,-150.0,0.00017178,2]
[401089848,1767917138700,-179.09,0.00017178,2]
[401089849,1767917138722,-171.35,0.00017178,2]
[401089850,1767917138743,-150.0,0.00017178,2]
[401089851,1767917138768,-466.71,0.00017178,2]
[401089852,1767917138791,-2298.96,0.00017178,2]
[401089853,1767917138814,-150.0,0.00017178,2]
[401089854,1767917138836,-179.09,0.00017178,2]
[401089855,1767917138859,-171.35,0.00017178,2]
[401089856,1767917138880,-150.0,0.00017178,2]
[401089857,1767917138902,-466.71,0.00017178,2]
[401089858,1767917138924,-300.0,0.00017178,2]
[401089859,1767917138945,-171.05,0.00017178,2]
[401089860,1767917138968,-178.79,0.00017178,2]
[401089861,1767917138989,-150.0,0.00017178,2]
[401089862,1767917139011,-466.71,0.00017178,2]
[401089863,1767917139032,-465.59,0.00017178,2]
[401089864,1767917139060,-2860.0,0.0001721,2]
[401089865,1767917139083,-2195.8,0.0001726,2]
[401089866,1767917139108,-157.72323008,0.00017363,2]
[401089867,1767917139130,-6552.0,0.00017376,2]
[401089868,1767917139152,-565.0,0.00017376,2]
[401089869,1767917139174,-1000.0,0.000174,2]
[401089870,1767917139195,-200.0,0.00017445,2]
[401089871,1767917139216,-2000.0,0.000175,2]
[401089872,1767917139236,-1000.0,0.000175,2]
[401089873,1767917139259,-3000.0,0.00017502,2]
[401089874,1767917139280,-2195.8,0.00017534,2]
[401089875,1767917139300,-440.34,0.00017622,2]
[401089876,1767917139322,-6888.13272826,0.0001764,2]
[401089877,1767917139343,-278.47145147,0.00017647,2]
[401089878,1767917139366,-574.12855637,0.00017647,2]
[401089879,1767917139390,-151.0,0.00017647,2]
[401089880,1767917139412,-1000.0,0.000177,2]
[401089881,1767917139434,-1000.0,0.00017709,2]
[401089882,1767917139458,-3404.0,0.00017723,2]
[401089883,1767917139480,-3404.0,0.00017774,2]
[401089884,1767917139500,-1416.3954599,0.000178,2]
[401089885,1767917139521,-546.92545443,0.000178,2]
[401089886,1767917139541,-504.66,0.00017807,2]
[401089887,1767917139563,-2195.8,0.00017808,2]
[401089888,1767917139585,-1000.0,0.00017819,2]
[401089889,1767917139605,-151.0,0.00017827,2]
[401089890,1767917139626,-500.0,0.00017829,2]
[401089891,1767917139647,-500.0,0.00017829,2]
[401089892,1767917139669,-500.0,0.00017829,2]
[401089893,1767917139690,-500.0,0.00017829,2]
[401089894,1767917139719,-83129.91836247,0.0001783,2]
[401089910,1767917432343,-243.88401561,0.00011562,2]
[401089911,1767917432353,-150.0,0.00011602,2]
[401089912,1767917432363,-335.0505645,0.00011603,2]
[401089913,1767917432372,-500.0,0.00011603,2]
[401089914,1767917432381,-155.31096865,0.00011603,2]
[401089915,1767917432391,-358.01333143,0.00011603,2]
[401089916,1767917432400,-152.51462746,0.00011603,2]
[401089917,1767917432411,-500.0,0.00011603,2]
[401089918,1767917432420,-365.39228615,0.00011603,2]
[401089919,1767917432429,-500.0,0.00011603,2]
[401089920,1767917432438,-500.0,0.00011603,2]
[401089921,1767917432448,-500.0,0.00011603,2]
[401089922,1767917432457,-500.0,0.00011603,2]
[401089923,1767917432467,-507.39194613,0.00011603,2]
[401089924,1767917432476,-500.0,0.00011603,2]
[401089925,1767917432485,-1000000.0,0.00011604,2]
[401089926,1767917432494,-1000.0,0.00011662,2]
[401089927,1767917432503,-2500.0,0.00011662,2]
[401089928,1767917432512,-255.0,0.0001267,2]
[401089929,1767917432522,-8528.08912082,0.00013598,2]
[401089930,1767917432531,-500.0,0.00013698,2]
[401089931,1767917432540,-500.0,0.00013698,2]
[401089932,1767917432549,-500.0,0.00013698,2]
[401089933,1767917432559,-500.0,0.00013698,2]
[401089934,1767917432568,-696.65,0.00013698,2]
[401089935,1767917432578,-696.65,0.00013698,2]
[401089936,1767917432590,-696.65,0.00013698,2]
[401089937,1767917432599,-696.65,0.00013698,2]
[401089938,1767917432610,-539.56119265,0.00013698,2]
[401089939,1767917432620,-512.38385976,0.00013698,2]
[401089940,1767917432629,-500.0,0.00013698,2]
[401089941,1767917432639,-500.0,0.00013698,2]
[401089942,1767917432649,-500.0,0.00013698,2]
[401089943,1767917432660,-500.0,0.00013698,2]
[401089944,1767917432670,-500.0,0.00013789,2]
[401089945,1767917432680,-696.65,0.00013789,2]
[401089946,1767917432698,-433.0,0.0001383,2]
[401089947,1767917432708,-2500.0,0.0001423,2]
[401089948,1767917432717,-5000.0,0.0001423,2]
[401089949,1767917432726,-500.0,0.00014763,2]
[401089950,1767917432736,-500.0,0.00014763,2]
[401089951,1767917432745,-500.0,0.00014763,2]
[401089953,1767917432754,-500.0,0.00014763,2]
[401089955,1767917432764,-500.0,0.00014763,2]
[401089958,1767917432774,-500.0,0.00014763,2]
[401089960,1767917432783,-176.14,0.00014793,2]
[401089962,1767917432792,-195.0,0.00015068,2]
[401089963,1767917432802,-2500.0,0.00015068,2]
[401089965,1767917432811,-5000.0,0.00015068,2]
[401089968,1767917432821,-736.0,0.00015106,2]
[401089969,1767917432830,-2500.0,0.0001514,2]
[401089971,1767917432839,-2500.0,0.0001514,2]
[401089973,1767917432849,-2500.0,0.0001514,2]
[401089975,1767917432858,-5000.0,0.0001514,2]
[401089976,1767917432867,-2417.56629543,0.0001514,2]
[401089977,1767917432877,-200.63511339,0.00015254,2]
[401089978,1767917432886,-1000.0,0.0001531,2]
[401089979,1767917432895,-250.0,0.0001533,2]
[401089980,1767917432904,-200.0,0.00015448,2]
[401089981,1767917432914,-500.0,0.00015649,2]
[401089982,1767917432923,-1500.0,0.00015858,2]
[401089983,1767917432932,-12712.44,0.00015903,2]
[401089984,1767917432942,-150.0,0.00016239,2]
[401089985,1767917432951,-250.0,0.00016239,2]
[401089986,1767917432961,-729.0,0.0001629,2]
[401089987,1767917432970,-729.0,0.00016345,2]
[401089988,1767917432980,-729.0,0.000164,2]
[401089989,1767917432991,-1278.61580038,0.00016406,2]
[401089990,1767917433001,-1097.9,0.00016438,2]
[401089991,1767917433255,-500.0,0.00016438,2]
[401089992,1767917433357,-500.0,0.00016438,2]
[401089993,1767917433368,-500.0,0.00016438,2]
[401089994,1767917433377,-500.0,0.00016438,2]
[401089995,1767917433387,-500.0,0.00016438,2]
[401089996,1767917433396,-268.86235281,0.00016438,2]
[401089997,1767917433405,-500.0,0.00016438,2]
[401089998,1767917433414,-729.0,0.00016454,2]
[401089999,1767917433423,-1252.0,0.00016499,2]
[401090000,1767917433432,-729.0,0.00016509,2]
[401090001,1767917433441,-600.0,0.00016564,2]
[401090002,1767917433451,-600.0,0.00016564,2]
[401090003,1767917433460,-600.0,0.00016564,2]
[401090004,1767917433469,-600.0,0.00016564,2]
[401090005,1767917433478,-690.87752029,0.00016564,2]
[401090006,1767917433487,-200.0,0.00016564,2]
[401090007,1767917433496,-200.0,0.00016564,2]
[401090008,1767917433506,-200.0,0.00016564,2]
[401090009,1767917433519,-200.0,0.00016564,2]
[401090010,1767917433528,-199.15612758,0.00016564,2]
[401090011,1767917433538,-729.0,0.00016564,2]
[401090012,1767917433548,-157.72323008,0.00016589,2]
[401090013,1767917433557,-729.0,0.00016619,2]
[401090014,1767917433566,-729.0,0.00016674,2]
[401090015,1767917433575,-1097.9,0.00016712,2]
[401090016,1767917433584,-198.19,0.00016712,2]
[401090017,1767917433594,-729.0,0.00016728,2]
[401090018,1767917433603,-729.0,0.00016783,2]
[401090019,1767917433612,-729.0,0.00016838,2]
[401090020,1767917433621,-729.0,0.00016893,2]
[401090021,1767917433631,-500.0,0.00016903,2]
[401090022,1767917433640,-696.65,0.00016903,2]
[401090023,1767917433649,-729.0,0.00016948,2]
[401090024,1767917433658,-1097.9,0.00016986,2]
[401090025,1767917433667,-729.0,0.00017002,2]
[401090026,1767917433676,-729.0,0.00017057,2]
[401090027,1767917433685,-578.20924308,0.00017099,2]
[401090028,1767917433694,-729.0,0.00017112,2]
[401090029,1767917433703,-729.0,0.00017167,2]
[401090030,1767917433712,-729.0,0.00017222,2]
[401090031,1767917433721,-1097.9,0.0001726,2]
[401090032,1767917433731,-729.0,0.00017276,2]
[401090033,1767917433739,-729.0,0.00017331,2]
[401090034,1767917433749,-729.0,0.00017386,2]
[401090035,1767917433759,-729.0,0.00017441,2]
[401090036,1767917433768,-157.72323008,0.0001751,2]
[401090037,1767917433777,-1097.9,0.00017534,2]
[401090038,1767917433786,-3444.06636413,0.0001764,2]
[401090039,1767917433795,-1000.0,0.000177,2]
[401090040,1767917433806,-12348.8526335,0.0001771,2]
[401090041,1767917433817,-16485.39292834,0.0001773,2]
[401090042,1767917433826,-16485.39292825,0.00017749,2]
[401090043,1767917433835,-16485.39292825,0.00017768,2]
[401090044,1767917433844,-16485.39292825,0.00017787,2]
[401090045,1767917433853,-16485.39292825,0.00017806,2]
[401090046,1767917433863,-1097.9,0.00017808,2]
[401090047,1767917433872,-307.97081481,0.00017809,2]
[401090048,1767917433881,-500.0,0.00017819,2]
[401090049,1767917433891,-500.0,0.00017819,2]
[401090050,1767917433899,-419.95971989,0.00017819,2]
[401090051,1767917433912,-620.0,0.00017819,2]
[401090052,1767917433921,-500.0,0.00017819,2]
[401090053,1767917433931,-500.0,0.00017819,2]
[401090054,1767917433940,-322.6107,0.00017819,2]
[401090055,1767917433949,-553.64373807,0.00017819,2]
[401090056,1767917433958,-219.32257983,0.00017819,2]
[401090057,1767917433968,-151.0,0.00017819,2]
[401090058,1767917433977,-482.57385,0.0001782,2]
[401090059,1767917433988,-482.57386,0.0001782,2]
[401090060,1767917433997,-16485.39292825,0.00017824,2]
[401090061,1767917434007,-500.0,0.00017829,2]
[401090062,1767917434018,-696.65,0.00017829,2]
[401090063,1767917434027,-500.0,0.00017829,2]
[401090064,1767917434036,-119170.82152384,0.0001783,2]
[401090065,1767917434045,-482.57385,0.0001783,2]
[401090066,1767917434055,-1000.0,0.0001783,2]
[401090067,1767917434064,-836.47750939,0.0001783,2]
[401090068,1767917434073,-200.0,0.0001783,2]
[401090069,1767917434082,-220.0,0.00017835,2]
[401090070,1767917434091,-16485.39292825,0.00017843,2]
[401090071,1767917434100,-2000.0,0.00017855,2]
[401090072,1767917434109,-2000.0,0.00017856,2]
[401090073,1767917434120,-200.0,0.00017856,2]
[401090074,1767917434129,-482.57386,0.0001786,2]
[401090075,1767917434138,-16485.39292825,0.00017862,2]
[401090076,1767917434147,-482.57386,0.0001788,2]
[401090077,1767917434157,-16485.39292825,0.00017881,2]
[401090078,1767917434166,-6781.24057958,0.00017886,2]
[401090079,1767917434175,-224.80139673,0.00017886,2]
[401090080,1767917434184,-364.61696962,0.00017886,2]
[401090081,1767917434193,-443.07497775,0.00017886,2]
[401090082,1767917434202,-6781.24057954,0.00017888,2]
[401090083,1767917434211,-224.80139668,0.00017888,2]
[401090084,1767917434220,-443.07497772,0.00017889,2]
[401090085,1767917434229,-6781.24057954,0.00017889,2]
[401090086,1767917434238,-6781.24057954,0.00017891,2]
[401090087,1767917434247,-224.80139668,0.00017891,2]
[401090088,1767917434256,-443.07497772,0.00017892,2]
[401090089,1767917434266,-6781.24057954,0.00017892,2]
[401090090,1767917434275,-224.80139668,0.00017893,2]
[401090091,1767917434286,-364.6169696,0.00017893,2]
[401090092,1767917434296,-6781.24057954,0.00017894,2]
[401090093,1767917434305,-443.07497772,0.00017894,2]
[401090094,1767917434315,-6781.24057954,0.00017895,2]
[401090095,1767917434324,-224.80139668,0.00017895,2]
[401090096,1767917434333,-6781.24057954,0.00017897,2]
[401090097,1767917434342,-443.07497772,0.00017897,2]
[401090098,1767917434351,-224.80139668,0.00017898,2]
[401090099,1767917434360,-6781.24057954,0.00017898,2]
[401090100,1767917434370,-10000.0,0.000179,2]
[401090101,1767917434379,-6781.24057954,0.000179,2]
[401090102,1767917434389,-224.80139668,0.000179,2]
[401090103,1767917434398,-16485.39292825,0.000179,2]
[401090104,1767917434407,-364.6169696,0.000179,2]
[401090105,1767917434416,-6223.7390172,0.000179,2]
[401090106,1767917434425,-443.07497772,0.000179,2]
[401090107,1767917434434,-246.71592967,0.000179,2]
[401090108,1767917434444,-11530.92990851,0.000179,2]
[401090109,1767917434453,-14022.0,0.000179,2]
[401090110,1767917434462,-482.57386,0.0001791,2]
[401090111,1767917434471,-1000.0,0.00017947,2]
[401090112,1767917434481,-158.0,0.00017972,2]
[401090113,1767917434490,-504.24318867,0.00017973,2]
[401090114,1767917434500,-500.0,0.00017973,2]
[401090115,1767917434510,-500.0,0.00017973,2]
[401090116,1767917434519,-500.0,0.00017973,2]
[401090117,1767917434529,-500.0,0.00017973,2]
[401090118,1767917434538,-500.0,0.00017973,2]
[401090119,1767917434547,-500.0,0.00017973,2]
[401090120,1767917434556,-235.35795411,0.00017973,2]
[401090121,1767917434566,-500.0,0.00017973,2]
[401090122,1767917434575,-500.0,0.00017973,2]
[401090123,1767917434585,-500.75581913,0.00017973,2]
[401090124,1767917434595,-500.0,0.00017973,2]
[401090125,1767917434606,-500.0,0.00017973,2]
[401090126,1767917434615,-500.0,0.00017973,2]
[401090127,1767917434625,-500.0,0.00017973,2]
[401090128,1767917434633,-500.0,0.00017973,2]
[401090129,1767917434643,-500.0,0.00017973,2]
[401090130,1767917434652,-569.64539879,0.00017973,2]
[401090131,1767917434662,-500.0,0.00017973,2]
[401090132,1767917434671,-500.0,0.00017973,2]
[401090133,1767917434681,-500.0,0.00017973,2]
[401090134,1767917434692,-500.0,0.00017973,2]
[401090135,1767917434703,-500.0,0.00017973,2]
[401090136,1767917434714,-150.0,0.00017973,2]
[401090137,1767917434726,-923.791,0.00017983,2]
[401090138,1767917434735,-1211.187,0.00017983,2]
[401090139,1767917434744,-6552.0,0.00017983,2]
[401090140,1767917434754,-2436.0,0.00017983,2]
[401090141,1767917434763,-151.0,0.00017983,2]
[401090142,1767917434772,-541.22505,0.00017984,2]
[401090143,1767917434782,-500.0,0.00017985,2]
[401090144,1767917434792,-525.57552704,0.00017985,2]
[401090145,1767917434802,-500.0,0.00017985,2]
[401090146,1767917434811,-500.0,0.00017985,2]
[401090147,1767917434821,-500.0,0.00017985,2]
[401090148,1767917434830,-500.0,0.00017985,2]
[401090149,1767917434840,-500.0,0.00017985,2]
[401090150,1767917434850,-500.0,0.00017985,2]
[401090151,1767917434860,-500.0,0.00017985,2]
[401090152,1767917434870,-195.61440438,0.00017985,2]
[401090153,1767917434879,-500.0,0.00017985,2]
[401090154,1767917434889,-500.0,0.00017985,2]
[401090155,1767917434898,-500.0,0.00017985,2]
[401090156,1767917434907,-500.0,0.00017985,2]
[401090157,1767917434916,-500.0,0.00017985,2]
[401090158,1767917434925,-500.0,0.00017985,2]
[401090159,1767917434935,-500.0,0.00017985,2]
[401090160,1767917434945,-500.0,0.00017985,2]
[401090161,1767917434954,-500.0,0.00017985,2]
[401090162,1767917434963,-696.65,0.00017985,2]
[401090163,1767917434972,-696.65,0.00017985,2]
[401090164,1767917434983,-696.65,0.00017985,2]
[401090165,1767917434997,-696.65,0.00017985,2]
[401090166,1767917435006,-696.65,0.00017985,2]
[401090167,1767917435016,-150.0,0.00017985,2]
[401090168,1767917435026,-39418.1670476,0.00017986,2]
[401090169,1767917435035,-539837.54779954,0.00017986,2]
[401090170,1767917435661,-728.33421554,0.00017986,2]
[401090171,1767917435673,-1249.18479842,0.00017986,2]
[401090172,1767917435692,-4438.60482183,0.00017986,2]
[401090173,1767917435703,-4149.96467474,0.00017986,2]
[401090174,1767917435717,-11862.92300559,0.00017986,2]
[401090175,1767917435729,-680.07227008,0.00017986,2]
[401090176,1767917435740,-1209.65538439,0.00017986,2]
[401090177,1767917435750,-659.1457183,0.00017986,2]
[401090178,1767917435781,-497.55228091,0.00017986,2]
[401090179,1767917435791,-563.14463283,0.00017986,2]
[401090180,1767917435803,-387.105,0.00017986,2]
[401090181,1767917435817,-296.40886238,0.00017986,2]
[401090182,1767917435828,-606.48713533,0.00017986,2]
[401090183,1767917435846,-2925.51092998,0.00017986,2]
[401090184,1767917435857,-3207.69999999,0.00017986,2]
[401090185,1767917435867,-4900.2279375,0.00017986,2]
[401090192,1767917438497,-729.0,0.00017495,2]
[401090193,1767917438507,-749.45863703,0.0001755,2]
[401090194,1767917438516,-310.24437792,0.00017983,2]
[401090195,1767917438527,-4508.75562208,0.00017983,2]
[401090196,1767917438536,-560.95128594,0.00017986,2]
[401090197,1767917438637,-38190.95792998,0.00017986,2]
[401090380,1767917440616,-152.0,0.00017972,2]
[401090382,1767917440626,-1270.89494616,0.00017986,2]
[401090411,1767917440896,-152.0,0.00017972,2]
[401090413,1767917440906,-528962.13923597,0.00017986,2]
[401090415,1767917440915,-7593.3745671,0.00017986,2]
[401090417,1767917440924,-57822.3298167,0.00017986,2]
[401090419,1767917440934,-500.0,0.00017987,2]
[401090421,1767917440944,-500.0,0.00017987,2]
[401090423,1767917440953,-500.0,0.00017987,2]
[401090425,1767917440963,-363.73176274,0.00017987,2]
[401090427,1767917440972,-504.66,0.00017987,2]
[401090429,1767917440984,-504.66,0.00017987,2]
[401090432,1767917440998,-504.66,0.00017987,2]
[401090434,1767917441007,-504.66,0.00017987,2]
[401090436,1767917441017,-500.0,0.00017987,2]
[401090438,1767917441027,-500.0,0.00017987,2]
[401090439,1767917441037,-500.0,0.00017987,2]
[401090441,1767917441046,-500.0,0.00017987,2]
[401090443,1767917441055,-500.0,0.00017987,2]
[401090445,1767917441066,-500.0,0.00017987,2]
[401090447,1767917441075,-500.0,0.00017987,2]
[401090449,1767917441084,-502.25127096,0.00017987,2]
[401090451,1767917441092,-307.97081481,0.0001799,2]
[401090452,1767917441102,-307.97081481,0.0001799,2]
[401090454,1767917441112,-256.0,0.00017991,2]
[401090456,1767917441120,-151.0,0.00017997,2]
[401090458,1767917441130,-244.32575353,0.00017999,2]
[401090460,1767917441139,-1006.1979,0.00017999,2]
[401090461,1767917441148,-504.66,0.00017999,2]
[401090463,1767917441157,-504.66,0.00017999,2]
[401090465,1767917441165,-504.66,0.00017999,2]
[401090467,1767917441174,-504.66,0.00017999,2]
[401090469,1767917441183,-504.66,0.00017999,2]
[401090471,1767917441192,-504.66,0.00017999,2]
[401090472,1767917441201,-504.66,0.00017999,2]
[401090474,1767917441210,-504.66,0.00017999,2]
[401090476,1767917441219,-504.66,0.00017999,2]
[401090478,1767917441228,-504.66,0.00017999,2]
[401090480,1767917441237,-504.66,0.00017999,2]
[401090481,1767917441245,-504.66,0.00017999,2]
[401090483,1767917441254,-504.72,0.00017999,2]
[401090485,1767917441263,-500.0,0.00017999,2]
[401090487,1767917441272,-500.0,0.00017999,2]
[401090489,1767917441281,-500.0,0.00017999,2]
[401090490,1767917441290,-500.0,0.00017999,2]
[401090492,1767917441299,-500.0,0.00017999,2]
[401090494,1767917441308,-500.0,0.00017999,2]
[401090496,1767917441317,-427.55831797,0.00017999,2]
[401090498,1767917441326,-300.0,0.00017999,2]
[401090499,1767917441335,-300.0,0.00017999,2]
[401090501,1767917441344,-300.0,0.00017999,2]
[401090503,1767917441353,-666.0,0.00017999,2]
[401090505,1767917441363,-500.0,0.00017999,2]
[401090507,1767917441372,-500.0,0.00017999,2]
[401090509,1767917441382,-330.37464563,0.00017999,2]
[401090512,1767917441390,-696.65,0.00017999,2]
[401090514,1767917441399,-696.65,0.00017999,2]
[401090517,1767917441409,-696.65,0.00017999,2]
[401090519,1767917441418,-696.65,0.00017999,2]
[401090521,1767917441430,-696.65,0.00017999,2]
[401090523,1767917441439,-696.65,0.00017999,2]
[401090525,1767917441448,-696.65,0.00017999,2]
[401090527,1767917441459,-696.65,0.00017999,2]
[401090528,1767917441468,-696.65,0.00017999,2]
[401090530,1767917441477,-696.65,0.00017999,2]
[401090532,1767917441486,-696.65,0.00017999,2]
[401090534,1767917441495,-696.79812993,0.00017999,2]
[401090536,1767917441503,-300.0,0.00017999,2]
[401090538,1767917441513,-666.0,0.00017999,2]
[401090540,1767917441522,-300.0,0.00017999,2]
[401090542,1767917441531,-895945.26218107,0.00018,2]
[401090544,1767917441540,-741203.47601904,0.00018,2]
[401090546,1767917441549,-105370.64318368,0.00018,2]
[401090547,1767917441558,-1185.61,0.00018,7]
[401090549,1767917441567,-382.30206586,0.00018,2]
[401090551,1767917441576,-1783478.34242025,0.00018,2]
[401090857,1767917444695,-152.0,0.00017972,2]
[401090859,1767917444705,-11124.12455188,0.00018,2]
[401091024,1767917446355,-151.0,0.00017342,2]
[401091026,1767917446365,-151.0,0.00017342,2]
[401091028,1767917446375,-565.0,0.00017983,2]
[401091030,1767917446385,-1716.6275441,0.00018,2]
[401091091,1767917446951,-245.0,0.0001799,2]
[401091093,1767917446960,-1238.25276862,0.00018,2]
[401091317,1767917451647,-1828.22352095,0.00018,2]
[401091318,1767917625776,162.54439595,0.000226,120]
[401091324,1767918403120,-186.96108707,0.00013697,2]
[401091339,1767918631696,-173.72,0.00011524,2]
[401091340,1767918631706,-250.0,0.00012676,2]
[401091341,1767918631715,-195.0,0.00012676,2]
[401091342,1767918631724,-300.0,0.00013697,2]
[401091343,1767918631734,-1200.0,0.00013697,2]
[401091344,1767918631743,-250.0,0.00013697,2]
[401091345,1767918631752,-500.0,0.00013698,2]
[401091346,1767918631762,-500.0,0.00013698,2]
[401091347,1767918631771,-500.0,0.00013698,2]
[401091348,1767918631781,-500.0,0.00013698,2]
[401091349,1767918631790,-500.0,0.00013698,2]
[401091350,1767918631799,-500.0,0.00013698,2]
[401091351,1767918631809,-500.0,0.00013698,2]
[401091352,1767918631818,-500.0,0.00013698,2]
[401091353,1767918631827,-500.0,0.00013698,2]
[401091354,1767918631836,-500.0,0.00013698,2]
[401091355,1767918631845,-150.0,0.00013702,2]
[401091356,1767918631855,-2500.0,0.00013703,2]
[401091357,1767918631864,-2500.0,0.00013703,2]
[401091358,1767918631873,-1569.75926636,0.00013703,2]
[401091359,1767918631884,-265.84703492,0.00013703,2]
[401091360,1767918631895,-452.91224315,0.00013703,2]
[401091362,1767918631906,-211.48145557,0.00013703,2]
[401091364,1767918631915,-65.71868068,0.00013703,2]
[401091366,1767918631930,-271.54991355,0.00013703,2]
[401091368,1767918631941,-1251.37727158,0.00013703,2]
[401091371,1767918631952,-911.35413419,0.00013703,2]
[401091373,1767918631962,-998.13686081,0.00014,2]
[401091375,1767918631971,-1416.90543781,0.00014338,2]
[401091377,1767918631982,-1998.50742485,0.00014338,2]
[401091379,1767918631993,-478.90713734,0.00014338,2]
[401091381,1767918632003,-500.0,0.00014389,2]
[401091383,1767918632012,-500.0,0.00014389,2]
[401091385,1767918632021,-500.0,0.00014389,2]
[401091387,1767918632030,-500.0,0.00014389,2]
[401091390,1767918632039,-500.0,0.00014389,2]
[401091393,1767918632048,-500.0,0.00014389,2]